[Event "*** Titled Tuesday Blitz"]
[Site "Chess.com"]
[Date "2020.05.19"]
[Round "6"]
[White "K_A_S_T_O_R"]
[Black "LiverpooL174"]
[Result "1/2-1/2"]
[WhiteElo "2725"]
[BlackElo "2533"]
[TimeControl "180+1"]
[EndTime "13:08:40 PDT"]
[Termination "Game drawn by repetition"]

1. e4 {[%clk 0:03:00.9]} 1... c6 {[%clk 0:02:58.4]} 2. d4 {[%clk 0:02:59.6]}
2... d5 {[%clk 0:02:59.3]} 3. exd5 {[%clk 0:03:00.2]} 3... cxd5 {[%clk
0:02:59.7]} 4. c4 {[%clk 0:03:00.9]} 4... Nf6 {[%clk 0:03:00]} 5. Nc3 {[%clk
0:03:01.6]} 5... e6 {[%clk 0:03:00.6]} 6. Nf3 {[%clk 0:03:01.4]} 6... Bb4 {[%clk
0:03:01.2]} 7. cxd5 {[%clk 0:03:01.3]} 7... Nxd5 {[%clk 0:03:02.1]} 8. Qc2
{[%clk 0:03:01.2]} 8... Nc6 {[%clk 0:03:01.2]} 9. Bd3 {[%clk 0:03:01.1]} 9... h6
{[%clk 0:03:00.2]} 10. O-O {[%clk 0:03:00.4]} 10... O-O {[%clk 0:02:59]} 11. Rd1
{[%clk 0:02:58.9]} 11... Bd6 {[%clk 0:02:59.4]} 12. a3 {[%clk 0:02:58.8]} 12...
Nf6 {[%clk 0:02:57.3]} 13. Ne4 {[%clk 0:02:56.1]} 13... Nxe4 {[%clk 0:02:54.5]}
14. Bxe4 {[%clk 0:02:57]} 14... Ne7 {[%clk 0:02:55.2]} 15. Ne5 {[%clk
0:02:53.4]} 15... Bxe5 {[%clk 0:02:40.6]} 16. dxe5 {[%clk 0:02:52.8]} 16... Nd5
{[%clk 0:02:41.5]} 17. Qe2 {[%clk 0:02:38.8]} 17... b6 {[%clk 0:02:40.1]} 18.
Qg4 {[%clk 0:02:37.7]} 18... f5 {[%clk 0:02:28.6]} 19. exf6 {[%clk 0:02:36.2]}
19... Qxf6 {[%clk 0:02:29.4]} 20. Qg3 {[%clk 0:02:33.2]} 20... Bb7 {[%clk
0:02:28]} 21. Bd2 {[%clk 0:02:23.6]} 21... Rad8 {[%clk 0:02:27]} 22. Re1 {[%clk
0:02:20.7]} 22... Rd7 {[%clk 0:02:23.7]} 23. Rab1 {[%clk 0:02:14.2]} 23... Kh8
{[%clk 0:02:20.1]} 24. h4 {[%clk 0:02:12.4]} 24... a5 {[%clk 0:02:18.1]} 25. b4
{[%clk 0:02:10.9]} 25... axb4 {[%clk 0:02:16.6]} 26. axb4 {[%clk 0:02:10.9]}
26... Rdf7 {[%clk 0:02:11.3]} 27. f3 {[%clk 0:02:06.6]} 27... Rd7 {[%clk
0:02:11.9]} 28. Kh1 {[%clk 0:02:04.5]} 28... Rc8 {[%clk 0:02:09.6]} 29. Rbc1
{[%clk 0:02:03.6]} 29... Rcd8 {[%clk 0:02:08.3]} 30. Bxd5 {[%clk 0:02:01.2]}
30... Bxd5 {[%clk 0:02:09.2]} 31. Bc3 {[%clk 0:02:00.9]} 31... Qf5 {[%clk
0:02:04.5]} 32. Re5 {[%clk 0:01:58.9]} 32... Qd3 {[%clk 0:02:01]} 33. Qf4 {[%clk
0:01:56.9]} 33... Kg8 {[%clk 0:01:45.7]} 34. Re3 {[%clk 0:01:55.9]} 34... Qf5
{[%clk 0:01:41.6]} 35. Qg3 {[%clk 0:01:53]} 35... Rc8 {[%clk 0:01:37.5]} 36. Kh2
{[%clk 0:01:47]} 36... Qf7 {[%clk 0:01:34.6]} 37. Bxg7 {[%clk 0:01:42.8]} 37...
Rxc1 {[%clk 0:01:32.3]} 38. Bb2+ {[%clk 0:01:42.2]} 38... Kh7 {[%clk 0:01:33]}
39. Bxc1 {[%clk 0:01:40.9]} 39... Qg6 {[%clk 0:01:32.6]} 40. Qe5 {[%clk
0:01:36.8]} 40... Qg7 {[%clk 0:01:30.8]} 41. Bb2 {[%clk 0:01:31.9]} 41... Qxe5+
{[%clk 0:01:29.2]} 42. Bxe5 {[%clk 0:01:32.8]} 42... b5 {[%clk 0:01:26.7]} 43.
h5 {[%clk 0:01:32.9]} 43... Bc4 {[%clk 0:01:24.7]} 44. g4 {[%clk 0:01:33.3]}
44... Rd3 {[%clk 0:01:22]} 45. Rxd3 {[%clk 0:01:32]} 45... Bxd3 {[%clk
0:01:22.9]} 46. Kg3 {[%clk 0:01:32.5]} 46... Bc4 {[%clk 0:01:23.3]} 47. f4
{[%clk 0:01:31.9]} 47... Be2 {[%clk 0:01:18.2]} 48. Kh4 {[%clk 0:01:31.7]} 48...
Bd1 {[%clk 0:01:17.8]} 49. g5 {[%clk 0:01:31.7]} 49... Be2 {[%clk 0:01:12.2]}
50. Bd6 {[%clk 0:01:30.7]} 50... Kg8 {[%clk 0:01:07.1]} 51. Be7 {[%clk
0:01:23.8]} 51... Kf7 {[%clk 0:01:06.9]} 52. Bf6 {[%clk 0:01:22.4]} 52... Kg8
{[%clk 0:01:06.5]} 53. Be5 {[%clk 0:01:18.7]} 53... Bd1 {[%clk 0:01:05.8]} 54.
gxh6 {[%clk 0:01:16.7]} 54... Kh7 {[%clk 0:01:05.5]} 55. Kg5 {[%clk 0:01:17]}
55... Bc2 {[%clk 0:01:05.1]} 56. Kf6 {[%clk 0:01:14.9]} 56... Bf5 {[%clk
0:01:06]} 57. Kg5 {[%clk 0:01:15.2]} 57... Bh3 {[%clk 0:01:06.9]} 58. Bg7 {[%clk
0:01:15.6]} 58... Bf5 {[%clk 0:01:07.8]} 59. Kf6 {[%clk 0:01:16.2]} 59... Bh3
{[%clk 0:01:07.9]} 60. Ke5 {[%clk 0:01:16.6]} 60... Bf5 {[%clk 0:01:08.8]} 61.
Kd6 {[%clk 0:01:17.1]} 61... Bh3 {[%clk 0:01:09.4]} 62. Kc6 {[%clk 0:01:17.3]}
62... Bf1 {[%clk 0:01:10]} 63. Kd6 {[%clk 0:01:16.5]} 63... Bc4 {[%clk
0:01:10.9]} 64. Ke5 {[%clk 0:01:16.7]} 64... Bb3 {[%clk 0:01:10.4]} 65. Kf6
{[%clk 0:01:16.9]} 65... Bc4 {[%clk 0:01:11]} 66. Bf8 {[%clk 0:01:17.2]} 66...
Bb3 {[%clk 0:01:11.3]} 67. f5 {[%clk 0:01:16.7]} 67... exf5 {[%clk 0:01:11]} 68.
Kxf5 {[%clk 0:01:17.6]} 68... Bc4 {[%clk 0:01:11.9]} 69. Ke5 {[%clk 0:01:18.1]}
69... Be2 {[%clk 0:01:12.5]} 70. Kd6 {[%clk 0:01:18.1]} 70... Bxh5 {[%clk
0:01:13.2]} 71. Bg7 {[%clk 0:01:18.2]} 71... Be2 {[%clk 0:01:14.1]} 72. Kc5
{[%clk 0:01:18.3]} 72... Bd3 {[%clk 0:01:15]} 73. Kd6 {[%clk 0:01:18.4]} 73...
Be2 {[%clk 0:01:15.9]} 74. Kc5 {[%clk 0:01:18.8]} 74... Bf1 {[%clk 0:01:16.8]}
75. Kd6 {[%clk 0:01:19.5]} 75... Bc4 {[%clk 0:01:17.5]} 76. Kc5 {[%clk
0:01:20.4]} 76... Bd3 {[%clk 0:01:18]} 77. Kd6 {[%clk 0:01:21.3]} 77... Bc4
{[%clk 0:01:18.8]} 78. Kc5 {[%clk 0:01:22.2]} 78... Bd3 {[%clk 0:01:19.4]}
1/2-1/2

[Event "*** Titled Tuesday Blitz"]
[Site "Chess.com"]
[Date "2020.05.19"]
[Round "6"]
[White "m_ezat"]
[Black "AsaHoffmann"]
[Result "0-1"]
[WhiteElo "2546"]
[BlackElo "2407"]
[TimeControl "180+1"]
[EndTime "13:08:40 PDT"]
[Termination "AsaHoffmann won by checkmate"]

1. d4 {[%clk 0:03:00.9]} 1... Nf6 {[%clk 0:02:59.2]} 2. c4 {[%clk 0:02:59.9]}
2... c5 {[%clk 0:02:58.8]} 3. d5 {[%clk 0:02:59.4]} 3... e5 {[%clk 0:02:58.6]}
4. Nc3 {[%clk 0:02:58.5]} 4... d6 {[%clk 0:02:58]} 5. e4 {[%clk 0:02:58.7]} 5...
Be7 {[%clk 0:02:57.7]} 6. Be2 {[%clk 0:02:58.8]} 6... Nbd7 {[%clk 0:02:57.3]} 7.
Nf3 {[%clk 0:02:59.3]} 7... Nf8 {[%clk 0:02:57]} 8. O-O {[%clk 0:02:59.9]} 8...
Ng6 {[%clk 0:02:56.8]} 9. Ne1 {[%clk 0:03:00.4]} 9... O-O {[%clk 0:02:56.1]} 10.
Nd3 {[%clk 0:03:00.9]} 10... Ne8 {[%clk 0:02:55.7]} 11. Rb1 {[%clk 0:02:57.4]}
11... Bg5 {[%clk 0:02:54.5]} 12. b4 {[%clk 0:02:56.2]} 12... cxb4 {[%clk
0:02:48.8]} 13. Nxb4 {[%clk 0:02:52.8]} 13... Bd7 {[%clk 0:02:41.7]} 14. Nd3
{[%clk 0:02:49]} 14... b6 {[%clk 0:02:37]} 15. a4 {[%clk 0:02:48.6]} 15... Rc8
{[%clk 0:02:35.8]} 16. Qb3 {[%clk 0:02:39.8]} 16... Nc7 {[%clk 0:02:32.5]} 17.
a5 {[%clk 0:02:27.1]} 17... bxa5 {[%clk 0:02:25.9]} 18. Qa3 {[%clk 0:02:01.3]}
18... Ne8 {[%clk 0:02:17.1]} 19. Rb7 {[%clk 0:01:44.7]} 19... Bxc1 {[%clk
0:02:10.6]} 20. Rxc1 {[%clk 0:01:38.9]} 20... Rxc4 {[%clk 0:02:02.2]} 21. Nb2
{[%clk 0:00:53.2]} 21... Rb4 {[%clk 0:01:52.4]} 22. Rxb4 {[%clk 0:00:46.5]}
22... axb4 {[%clk 0:01:51.8]} 23. Qxb4 {[%clk 0:00:47.1]} 23... Qg5 {[%clk
0:01:44.4]} 24. Nd3 {[%clk 0:00:43.9]} 24... f5 {[%clk 0:01:37.3]} 25. Qb7
{[%clk 0:00:35.3]} 25... Nf6 {[%clk 0:01:35.4]} 26. Qb1 {[%clk 0:00:15.3]} 26...
fxe4 {[%clk 0:01:32.6]} 27. Nb4 {[%clk 0:00:15.5]} 27... Bf5 {[%clk 0:01:20.5]}
28. Qa1 {[%clk 0:00:13.7]} 28... e3 {[%clk 0:01:19.4]} 29. f3 {[%clk 0:00:10.8]}
29... Nf4 {[%clk 0:01:09.6]} 30. Bf1 {[%clk 0:00:11.3]} 30... Nh3+ {[%clk
0:00:59.6]} 31. Kh1 {[%clk 0:00:11]} 31... Nf2+ {[%clk 0:00:58.7]} 32. Kg1
{[%clk 0:00:11.3]} 32... e4 {[%clk 0:00:54.5]} 33. fxe4 {[%clk 0:00:09.5]} 33...
N6xe4 {[%clk 0:00:46.9]} 34. Nxe4 {[%clk 0:00:09.3]} 34... Bxe4 {[%clk
0:00:46.4]} 35. Qd4 {[%clk 0:00:07.8]} 35... Nh3+ {[%clk 0:00:43.4]} 36. Kh1
{[%clk 0:00:08.1]} 36... Rxf1+ {[%clk 0:00:42.4]} 37. Rxf1 {[%clk 0:00:07.5]}
37... Qxg2# {[%clk 0:00:41.7]} 0-1

[Event "*** Titled Tuesday Blitz"]
[Site "Chess.com"]
[Date "2020.05.19"]
[Round "6"]
[White "mirandamikadze"]
[Black "Stronger1799"]
[Result "0-1"]
[WhiteElo "1992"]
[BlackElo "2306"]
[TimeControl "180+1"]
[EndTime "13:08:40 PDT"]
[Termination "Stronger1799 won by checkmate"]

1. e4 {[%clk 0:03:00.9]} 1... c5 {[%clk 0:02:50.2]} 2. c3 {[%clk 0:03:00.5]}
2... b6 {[%clk 0:02:40.4]} 3. d4 {[%clk 0:03:00]} 3... Bb7 {[%clk 0:02:40.3]} 4.
Bd3 {[%clk 0:02:59.4]} 4... cxd4 {[%clk 0:02:40.3]} 5. cxd4 {[%clk 0:02:59]}
5... Nc6 {[%clk 0:02:41.2]} 6. Nf3 {[%clk 0:02:59.1]} 6... Nb4 {[%clk
0:02:41.4]} 7. Nc3 {[%clk 0:02:58.5]} 7... Nxd3+ {[%clk 0:02:41.4]} 8. Qxd3
{[%clk 0:02:58.6]} 8... e6 {[%clk 0:02:42.1]} 9. O-O {[%clk 0:02:57.9]} 9... Bb4
{[%clk 0:02:42.8]} 10. Bg5 {[%clk 0:02:54.1]} 10... Nf6 {[%clk 0:02:11.6]} 11.
e5 {[%clk 0:02:37.7]} 11... h6 {[%clk 0:02:10.3]} 12. exf6 {[%clk 0:02:21.5]}
12... hxg5 {[%clk 0:02:09.6]} 13. fxg7 {[%clk 0:02:21.2]} 13... Rg8 {[%clk
0:02:07.7]} 14. Qh7 {[%clk 0:02:20.6]} 14... Ke7 {[%clk 0:02:08]} 15. Nxg5
{[%clk 0:02:04.6]} 15... f6 {[%clk 0:02:04.1]} 16. Nge4 {[%clk 0:02:01.8]} 16...
Qe8 {[%clk 0:01:41]} 17. d5 {[%clk 0:01:57.3]} 17... Qf7 {[%clk 0:01:35.5]} 18.
Qh4 {[%clk 0:00:40.5]} 18... Qxg7 {[%clk 0:01:12.6]} 19. g3 {[%clk 0:00:37.3]}
19... Rh8 {[%clk 0:00:39.6]} 20. Qf4 {[%clk 0:00:30.6]} 20... f5 {[%clk
0:00:36.5]} 21. dxe6 {[%clk 0:00:27.7]} 21... fxe4 {[%clk 0:00:29.6]} 22. Nxe4
{[%clk 0:00:27]} 22... Raf8 {[%clk 0:00:21.9]} 23. Qc7 {[%clk 0:00:18.4]} 23...
Bxe4 {[%clk 0:00:21.6]} 24. Qxd7+ {[%clk 0:00:17.2]} 24... Kf6 {[%clk
0:00:20.8]} 25. Qd4+ {[%clk 0:00:17.1]} 25... Kf5 {[%clk 0:00:18.1]} 26. Qxb4
{[%clk 0:00:12.5]} 26... Rxh2 {[%clk 0:00:16.6]} 27. f3 {[%clk 0:00:10.4]} 27...
Qxg3# {[%clk 0:00:15.1]} 0-1

[Event "*** Titled Tuesday Blitz"]
[Site "Chess.com"]
[Date "2020.05.19"]
[Round "6"]
[White "Hikaru"]
[Black "BocharovD"]
[Result "1-0"]
[WhiteElo "3193"]
[BlackElo "2848"]
[TimeControl "180+1"]
[EndTime "13:08:41 PDT"]
[Termination "Hikaru won by resignation"]

1. d4 {[%clk 0:02:47.5]} 1... Nf6 {[%clk 0:02:59.5]} 2. c4 {[%clk 0:02:47.9]}
2... e6 {[%clk 0:02:59.9]} 3. Nf3 {[%clk 0:02:47.9]} 3... b6 {[%clk 0:02:58.5]}
4. g3 {[%clk 0:02:47.5]} 4... Bb7 {[%clk 0:02:59]} 5. Bg2 {[%clk 0:02:47.7]}
5... Be7 {[%clk 0:02:59.6]} 6. O-O {[%clk 0:02:47.8]} 6... O-O {[%clk
0:03:00.2]} 7. Re1 {[%clk 0:02:46.9]} 7... d5 {[%clk 0:02:58.9]} 8. cxd5 {[%clk
0:02:44.6]} 8... exd5 {[%clk 0:02:59.8]} 9. Bf4 {[%clk 0:02:44.9]} 9... Na6
{[%clk 0:02:56.4]} 10. Nc3 {[%clk 0:02:44.9]} 10... c5 {[%clk 0:02:56.8]} 11. e3
{[%clk 0:02:42.1]} 11... Nc7 {[%clk 0:02:55.5]} 12. Rc1 {[%clk 0:02:35.5]} 12...
Ne6 {[%clk 0:02:51.7]} 13. Ng5 {[%clk 0:02:18.6]} 13... Nxf4 {[%clk 0:02:44.1]}
14. exf4 {[%clk 0:02:17.8]} 14... cxd4 {[%clk 0:02:36.1]} 15. Qxd4 {[%clk
0:02:05.9]} 15... Bc5 {[%clk 0:02:33.9]} 16. Qd1 {[%clk 0:02:04.1]} 16... h6
{[%clk 0:02:31.7]} 17. Nf3 {[%clk 0:02:03.6]} 17... Ng4 {[%clk 0:02:16.3]} 18.
Nd4 {[%clk 0:01:49.2]} 18... Nxf2 {[%clk 0:01:48.8]} 19. Kxf2 {[%clk 0:01:19.1]}
19... Qf6 {[%clk 0:01:48.2]} 20. Re5 {[%clk 0:00:59.4]} 20... Rfe8 {[%clk
0:01:47.8]} 21. Nxd5 {[%clk 0:00:59.1]} 21... Bxd5 {[%clk 0:01:44.7]} 22. Rxd5
{[%clk 0:01:00]} 22... Rad8 {[%clk 0:01:42.3]} 23. Rcxc5 {[%clk 0:00:57.8]}
23... bxc5 {[%clk 0:01:39.9]} 24. Ne2 {[%clk 0:00:54.4]} 24... c4 {[%clk
0:01:19.7]} 25. Qd2 {[%clk 0:00:40.8]} 25... Rxd5 {[%clk 0:01:16.1]} 26. Bxd5
{[%clk 0:00:40.5]} 26... Rb8 {[%clk 0:01:05.8]} 27. b3 {[%clk 0:00:28.3]} 27...
cxb3 {[%clk 0:01:05.5]} 28. Bxb3 {[%clk 0:00:29.2]} 28... Rd8 {[%clk 0:01:02.1]}
29. Qe3 {[%clk 0:00:29.2]} 29... Qc6 {[%clk 0:01:00.1]} 30. Qxa7 {[%clk
0:00:26.6]} 30... Rd7 {[%clk 0:00:58]} 31. Qe3 {[%clk 0:00:23.9]} 31... g6
{[%clk 0:00:57.3]} 32. Nd4 {[%clk 0:00:21.2]} 32... Qd6 {[%clk 0:00:55.1]} 33.
Nf3 {[%clk 0:00:20.8]} 33... Re7 {[%clk 0:00:52.7]} 34. Qd4 {[%clk 0:00:20.7]}
34... Qc7 {[%clk 0:00:42.2]} 35. Ne5 {[%clk 0:00:20.7]} 35... Kh7 {[%clk
0:00:42.2]} 36. Ng4 {[%clk 0:00:20.5]} 1-0

[Event "*** Titled Tuesday Blitz"]
[Site "Chess.com"]
[Date "2020.05.19"]
[Round "6"]
[White "Igor_Lysyj"]
[Black "WildTricks"]
[Result "0-1"]
[WhiteElo "2767"]
[BlackElo "2549"]
[TimeControl "180+1"]
[EndTime "13:08:42 PDT"]
[Termination "WildTricks won by resignation"]

1. d4 {[%clk 0:03:00.1]} 1... f5 {[%clk 0:02:59.5]} 2. g3 {[%clk 0:02:58.2]}
2... Nf6 {[%clk 0:02:59.6]} 3. Bg2 {[%clk 0:02:58]} 3... g6 {[%clk 0:03:00.5]}
4. Nd2 {[%clk 0:02:57.3]} 4... Bg7 {[%clk 0:03:01.4]} 5. c3 {[%clk 0:02:57.3]}
5... d5 {[%clk 0:02:57.3]} 6. Nh3 {[%clk 0:02:55.6]} 6... O-O {[%clk 0:02:56.9]}
7. Nf3 {[%clk 0:02:54.5]} 7... e6 {[%clk 0:02:53]} 8. Nf4 {[%clk 0:02:54.3]}
8... Qe7 {[%clk 0:02:52.7]} 9. h4 {[%clk 0:02:54.5]} 9... Ne4 {[%clk 0:02:45.2]}
10. h5 {[%clk 0:02:54.7]} 10... g5 {[%clk 0:02:39.7]} 11. h6 {[%clk 0:02:53.5]}
11... Bh8 {[%clk 0:02:39]} 12. Nd3 {[%clk 0:02:45.6]} 12... b6 {[%clk
0:02:35.8]} 13. Nfe5 {[%clk 0:02:43.5]} 13... c5 {[%clk 0:02:30.4]} 14. Rh5
{[%clk 0:02:40.5]} 14... Bf6 {[%clk 0:02:12]} 15. Be3 {[%clk 0:02:07.2]} 15...
a5 {[%clk 0:02:11.1]} 16. g4 {[%clk 0:01:51.8]} 16... f4 {[%clk 0:02:04.2]} 17.
Bd2 {[%clk 0:01:45.6]} 17... Ba6 {[%clk 0:01:52.5]} 18. Qa4 {[%clk 0:01:32.4]}
18... c4 {[%clk 0:01:21.9]} 19. Nc1 {[%clk 0:01:31.1]} 19... Nd6 {[%clk
0:01:21.4]} 20. Bf3 {[%clk 0:01:24]} 20... Bb7 {[%clk 0:01:09.2]} 21. Qa3 {[%clk
0:01:14.8]} 21... Nc6 {[%clk 0:01:04.3]} 22. Nxc6 {[%clk 0:01:10.5]} 22... Bxc6
{[%clk 0:01:05.2]} 23. b3 {[%clk 0:01:09.9]} 23... b5 {[%clk 0:01:01.5]} 24.
bxc4 {[%clk 0:01:08.3]} 24... Nxc4 {[%clk 0:01:01.2]} 25. Qxe7 {[%clk
0:01:07.2]} 25... Bxe7 {[%clk 0:01:02.1]} 26. Nd3 {[%clk 0:01:07]} 26... Be8
{[%clk 0:01:00.1]} 27. Rh1 {[%clk 0:01:04.7]} 27... Bg6 {[%clk 0:01:00.3]} 28.
Bc1 {[%clk 0:00:47]} 28... Rfc8 {[%clk 0:00:59.5]} 29. Kf1 {[%clk 0:00:45.5]}
29... Rc7 {[%clk 0:00:48.6]} 30. Kg2 {[%clk 0:00:45.4]} 30... b4 {[%clk
0:00:36.7]} 31. cxb4 {[%clk 0:00:43.4]} 31... axb4 {[%clk 0:00:37.6]} 32. Nc5
{[%clk 0:00:26.3]} 32... Bxc5 {[%clk 0:00:37.1]} 33. dxc5 {[%clk 0:00:26.6]}
33... Rxc5 {[%clk 0:00:37.3]} 34. Rd1 {[%clk 0:00:26.4]} 34... Rca5 {[%clk
0:00:36.7]} 35. Rd4 {[%clk 0:00:23.1]} 35... Rxa2 {[%clk 0:00:35.3]} 36. Rxa2
{[%clk 0:00:21.8]} 36... Rxa2 {[%clk 0:00:36.2]} 37. Rxd5 {[%clk 0:00:19.1]}
37... exd5 {[%clk 0:00:36.1]} 38. Bxd5+ {[%clk 0:00:19.4]} 38... Bf7 {[%clk
0:00:36.7]} 0-1

[Event "*** Titled Tuesday Blitz"]
[Site "Chess.com"]
[Date "2020.05.19"]
[Round "6"]
[White "GothamChess"]
[Black "S_Kalvaitis"]
[Result "1-0"]
[WhiteElo "2608"]
[BlackElo "2346"]
[TimeControl "180+1"]
[EndTime "13:08:42 PDT"]
[Termination "GothamChess won on time"]

1. d4 {[%clk 0:03:00.9]} 1... d5 {[%clk 0:02:59.9]} 2. Nf3 {[%clk 0:03:00.4]}
2... Nc6 {[%clk 0:02:59.9]} 3. g3 {[%clk 0:03:01]} 3... Bg4 {[%clk 0:03:00]} 4.
Bg2 {[%clk 0:03:01.4]} 4... Qd7 {[%clk 0:03:00.5]} 5. O-O {[%clk 0:02:59.2]}
5... O-O-O {[%clk 0:03:00.4]} 6. a4 {[%clk 0:02:56.3]} 6... f6 {[%clk 0:03:00]}
7. a5 {[%clk 0:02:54.4]} 7... e5 {[%clk 0:02:55.3]} 8. dxe5 {[%clk 0:02:53.1]}
8... fxe5 {[%clk 0:02:56.2]} 9. a6 {[%clk 0:02:52.2]} 9... b6 {[%clk 0:02:56.7]}
10. Bg5 {[%clk 0:02:46.4]} 10... Nf6 {[%clk 0:02:55.5]} 11. Bxf6 {[%clk
0:02:44.8]} 11... gxf6 {[%clk 0:02:55]} 12. c4 {[%clk 0:02:42.4]} 12... Bc5
{[%clk 0:02:41.1]} 13. cxd5 {[%clk 0:02:38]} 13... Qxd5 {[%clk 0:02:32.4]} 14.
Qa4 {[%clk 0:02:32.2]} 14... Nb4 {[%clk 0:01:34.9]} 15. Nh4 {[%clk 0:01:53.1]}
15... Qd7 {[%clk 0:01:34.8]} 16. Bb7+ {[%clk 0:01:43.7]} 16... Kb8 {[%clk
0:01:35.1]} 17. Nc3 {[%clk 0:01:40.3]} 17... Qxa4 {[%clk 0:01:23]} 18. Nxa4
{[%clk 0:01:41.2]} 18... Be7 {[%clk 0:01:09.3]} 19. Nc3 {[%clk 0:01:35.2]} 19...
Be6 {[%clk 0:00:39.8]} 20. Ng2 {[%clk 0:01:24.7]} 20... f5 {[%clk 0:00:36.2]}
21. Rac1 {[%clk 0:01:17.5]} 21... Bc8 {[%clk 0:00:19]} 22. Ne3 {[%clk
0:01:11.6]} 22... Bxb7 {[%clk 0:00:19]} 23. axb7 {[%clk 0:01:12]} 23... Kxb7
{[%clk 0:00:19.5]} 24. Nxf5 {[%clk 0:01:12.1]} 24... Bf6 {[%clk 0:00:17.8]} 25.
Ne4 {[%clk 0:01:10.1]} 25... Rhf8 {[%clk 0:00:15.8]} 26. g4 {[%clk 0:01:07]}
26... Nd5 {[%clk 0:00:14.1]} 27. e3 {[%clk 0:01:03.7]} 27... c5 {[%clk
0:00:12.3]} 28. Ra1 {[%clk 0:01:00]} 28... a5 {[%clk 0:00:12.3]} 29. h3 {[%clk
0:00:56.3]} 29... h5 {[%clk 0:00:11.6]} 30. Kg2 {[%clk 0:00:56]} 30... hxg4
{[%clk 0:00:11.5]} 31. hxg4 {[%clk 0:00:56.9]} 31... Bh8 {[%clk 0:00:11.6]} 32.
Rh1 {[%clk 0:00:55.9]} 32... Rg8 {[%clk 0:00:12.1]} 33. Rh7+ {[%clk 0:00:55.4]}
33... Kb8 {[%clk 0:00:11.9]} 34. Kf3 {[%clk 0:00:54.4]} 34... Rdf8 {[%clk
0:00:11.6]} 35. Rah1 {[%clk 0:00:43.3]} 35... Bf6 {[%clk 0:00:08.1]} 36. Rd7
{[%clk 0:00:40.6]} 1-0

[Event "*** Titled Tuesday Blitz"]
[Site "Chess.com"]
[Date "2020.05.19"]
[Round "6"]
[White "Oleksandr_Bortnyk"]
[Black "dretch"]
[Result "0-1"]
[WhiteElo "2970"]
[BlackElo "2749"]
[TimeControl "180+1"]
[EndTime "13:08:43 PDT"]
[Termination "dretch won by checkmate"]

1. e4 {[%clk 0:03:00.9]} 1... e6 {[%clk 0:01:54.7]} 2. d4 {[%clk 0:02:56.9]}
2... d5 {[%clk 0:01:48.2]} 3. Nc3 {[%clk 0:02:57.8]} 3... Nf6 {[%clk 0:01:38.8]}
4. Bg5 {[%clk 0:02:57]} 4... dxe4 {[%clk 0:01:38.8]} 5. Nxe4 {[%clk 0:02:56.8]}
5... Be7 {[%clk 0:01:39.2]} 6. Bxf6 {[%clk 0:02:56.9]} 6... Bxf6 {[%clk
0:01:40.1]} 7. Nf3 {[%clk 0:02:57.3]} 7... Nd7 {[%clk 0:01:40.6]} 8. Bd3 {[%clk
0:02:57.6]} 8... c5 {[%clk 0:01:40.3]} 9. Qd2 {[%clk 0:02:36.1]} 9... cxd4
{[%clk 0:01:31.6]} 10. Nxf6+ {[%clk 0:02:35.2]} 10... Nxf6 {[%clk 0:01:29.9]}
11. Nxd4 {[%clk 0:02:34.8]} 11... e5 {[%clk 0:01:24.7]} 12. Nf3 {[%clk
0:01:45.3]} 12... O-O {[%clk 0:00:54.9]} 13. Nxe5 {[%clk 0:01:41.4]} 13... Qd5
{[%clk 0:00:54.2]} 14. f4 {[%clk 0:01:36.7]} 14... Rd8 {[%clk 0:00:36.6]} 15.
O-O-O {[%clk 0:00:42.2]} 15... Qxa2 {[%clk 0:00:33.4]} 16. Bxh7+ {[%clk
0:00:41.2]} 16... Kxh7 {[%clk 0:00:33.6]} 17. Qxd8 {[%clk 0:00:42.1]} 17... Bf5
{[%clk 0:00:13.4]} 18. Qxa8 {[%clk 0:00:32.6]} 18... Ne4 {[%clk 0:00:13.2]} 19.
c4 {[%clk 0:00:23.1]} 19... Qa1+ {[%clk 0:00:11.7]} 20. Kc2 {[%clk 0:00:23.6]}
20... Nc5+ {[%clk 0:00:11.4]} 21. Kc3 {[%clk 0:00:13]} 21... Qa5+ {[%clk
0:00:10.5]} 22. Kd4 {[%clk 0:00:06.5]} 22... Qb6 {[%clk 0:00:10.7]} 23. Ke3
{[%clk 0:00:05.6]} 23... Nd3+ {[%clk 0:00:10.1]} 24. c5 {[%clk 0:00:03.9]} 24...
Qxc5+ {[%clk 0:00:09.9]} 25. Kd2 {[%clk 0:00:04.5]} 25... Qf2+ {[%clk
0:00:09.7]} 26. Kc3 {[%clk 0:00:05.1]} 26... Qxb2+ {[%clk 0:00:09.8]} 27. Kc4
{[%clk 0:00:05.7]} 27... Qb4+ {[%clk 0:00:10]} 28. Kd5 {[%clk 0:00:06]} 28...
Qc5# {[%clk 0:00:10.3]} 0-1

[Event "*** Titled Tuesday Blitz"]
[Site "Chess.com"]
[Date "2020.05.19"]
[Round "6"]
[White "shav3184"]
[Black "Shivagami"]
[Result "1-0"]
[WhiteElo "2352"]
[BlackElo "2178"]
[TimeControl "180+1"]
[EndTime "13:08:43 PDT"]
[Termination "shav3184 won by resignation"]

1. e4 {[%clk 0:03:00.9]} 1... c5 {[%clk 0:02:53.4]} 2. Nf3 {[%clk 0:03:00.9]}
2... d6 {[%clk 0:02:50.9]} 3. d4 {[%clk 0:03:01.8]} 3... cxd4 {[%clk 0:02:50.8]}
4. Nxd4 {[%clk 0:03:02.7]} 4... Nf6 {[%clk 0:02:51.7]} 5. f3 {[%clk 0:03:02.2]}
5... a6 {[%clk 0:02:50]} 6. c4 {[%clk 0:03:01.6]} 6... g6 {[%clk 0:02:40.9]} 7.
Nc3 {[%clk 0:03:01.2]} 7... Bg7 {[%clk 0:02:41.1]} 8. Be2 {[%clk 0:03:00.7]}
8... O-O {[%clk 0:02:30.8]} 9. O-O {[%clk 0:02:58.7]} 9... Nc6 {[%clk
0:02:30.1]} 10. Be3 {[%clk 0:02:58.4]} 10... Bd7 {[%clk 0:02:24]} 11. Qd2 {[%clk
0:02:57.6]} 11... Rc8 {[%clk 0:02:17.9]} 12. Rac1 {[%clk 0:02:57.2]} 12... e6
{[%clk 0:01:56.4]} 13. Rfd1 {[%clk 0:02:55.5]} 13... Ne8 {[%clk 0:01:51.2]} 14.
Nxc6 {[%clk 0:02:43.6]} 14... Bxc6 {[%clk 0:01:44.1]} 15. c5 {[%clk 0:02:38]}
15... d5 {[%clk 0:01:18.7]} 16. exd5 {[%clk 0:02:36]} 16... exd5 {[%clk
0:01:18.5]} 17. Nxd5 {[%clk 0:02:03.5]} 17... Bxd5 {[%clk 0:01:16.7]} 18. Qxd5
{[%clk 0:02:02.1]} 18... Qxd5 {[%clk 0:01:16.9]} 19. Rxd5 {[%clk 0:02:01.1]}
19... Bxb2 {[%clk 0:01:17.4]} 20. Rb1 {[%clk 0:02:00.3]} 20... Nc7 {[%clk
0:01:15.8]} 21. Rd7 {[%clk 0:01:56.3]} 21... Rfe8 {[%clk 0:01:08.2]} 22. Kf2
{[%clk 0:01:45.2]} 22... Ba3 {[%clk 0:00:30.1]} 23. Rb3 {[%clk 0:01:33.6]} 23...
Rxe3 {[%clk 0:00:22.6]} 24. Kxe3 {[%clk 0:01:19.3]} 24... Bxc5+ {[%clk
0:00:23.5]} 25. Kd2 {[%clk 0:01:17]} 25... b6 {[%clk 0:00:24]} 26. Bc4 {[%clk
0:01:11.1]} 26... Ne6 {[%clk 0:00:19.4]} 27. Bxe6 {[%clk 0:01:10.7]} 27... fxe6
{[%clk 0:00:19.4]} 28. Rbd3 {[%clk 0:01:10]} 28... b5 {[%clk 0:00:11.8]} 29.
Rd8+ {[%clk 0:01:06.1]} 29... Rxd8 {[%clk 0:00:11]} 30. Rxd8+ {[%clk 0:01:07]}
30... Kg7 {[%clk 0:00:11]} 31. Ra8 {[%clk 0:01:07.9]} 31... Bb4+ {[%clk
0:00:11]} 32. Kd3 {[%clk 0:01:05.8]} 32... a5 {[%clk 0:00:10.5]} 33. Rb8 {[%clk
0:01:04.6]} 33... e5 {[%clk 0:00:09.1]} 34. Rxb5 {[%clk 0:01:03.6]} 34... Kf6
{[%clk 0:00:10]} 35. Ke4 {[%clk 0:01:01]} 35... Bc3 {[%clk 0:00:09.4]} 36. h4
{[%clk 0:01:00.9]} 36... g5 {[%clk 0:00:09]} 37. Rb6+ {[%clk 0:01:00.5]} 37...
Kf7 {[%clk 0:00:07.4]} 38. hxg5 {[%clk 0:01:01.4]} 1-0